bitfinex-derivatives/quotes_SOLF0:USTF0_20251115
["timestamp","ask_amount","ask_price","bid_price","bid_amount"]
[1763231118374,5.2842566,142.62,142.6,3.31]
[1763231118572,5.2842566,142.61,142.6,3.31]
[1763231120074,5.2842566,142.61,142.6,6.07790964]
[1763231120273,5.28007118,142.61,142.6,3.31]
[1763231125071,8.51007118,142.61,142.59,3.35925406]
[1763231125277,5.28007118,142.6,142.59,3.35925406]
[1763231125473,8.51007118,142.6,142.59,0.04925406]
[1763231125782,0.05212248,142.63,142.59,0.04925406]
[1763231127578,1.17,142.62,142.59,0.04925406]
[1763231128373,2.57,142.62,142.55,6.50902721]
[1763231128566,1.17,142.61,142.53,9.81902721]
[1763231129578,1.17,142.57,142.56,0.05195389]
[1763231132271,1.17,142.57,142.5,8.28209095]
[1763231132477,1.17,142.55,142.49,9.81902721]
[1763231132677,1.17,142.55,142.49,5.08306374]
[1763231133281,1.22089208,142.53,142.51,0.04967744]
[1763231133479,1.22089208,142.53,142.51,3.35967744]
[1763231133984,1.22089208,142.53,142.51,0.04967744]
[1763231134380,1.22089208,142.53,142.51,3.28967744]
[1763231134677,1.22089208,142.53,142.51,0.04967744]
[1763231137979,6.34427795,142.52,142.51,0.04967744]
[1763231138282,1.17,142.52,142.51,0.04967744]
[1763231139070,1.17,142.52,142.46,5.01306374]
[1763231139982,1.17,142.52,142.48,0.04483558]
[1763231140176,1.17,142.52,142.49,1.77306374]
[1763231140376,1.17,142.52,142.48,0.04483558]
[1763231141589,1.17,142.52,142.48,3.28483558]
[1763231141882,1.17,142.52,142.48,0.04483558]
[1763231150095,1.17,142.52,142.49,1.77306374]
[1763231151894,2.94306374,142.52,142.48,0.04483558]
[1763231152089,1.17,142.51,142.48,0.04483558]
[1763231152293,1.17,142.51,142.48,3.28483558]
[1763231153087,1.17,142.51,142.48,0.04483558]
[1763231155491,1.17,142.49,142.48,0.04483558]
[1763231156802,1.21730373,142.5,142.48,3.28483558]
[1763231157805,0.04730373,142.5,142.48,3.28483558]
[1763231159307,1.21730373,142.5,142.48,3.28483558]
[1763231159500,1.21730373,142.5,142.48,0.04483558]
[1763231160207,1.21730373,142.5,142.48,1.81789932]
[1763231160404,1.21730373,142.5,142.48,0.04483558]
[1763231161306,0.04730373,142.5,142.48,3.28483558]
[1763231161509,1.17,142.55,142.49,5.01306374]
[1763231161807,1.17,142.57,142.52,3.24]
[1763231162600,1.77306374,142.58,142.53,0.04503834]
[1763231162601,1.17,142.55,142.53,0.04503834]
[1763231163101,1.2171964,142.56,142.53,3.28503834]
[1763231163299,0.0471964,142.56,142.53,3.28503834]
[1763231164207,0.0471964,142.56,142.54,3.2]
[1763231165607,0.0471964,142.56,142.55,4.97306374]
[1763231166107,0.0471964,142.56,142.55,6.37306374]
[1763231166307,0.0471964,142.56,142.55,4.97306374]
[1763231167297,1.2171964,142.56,142.53,3.24503834]
[1763231168410,6.35672981,142.56,142.53,3.24503834]
[1763231168709,1.2171964,142.56,142.53,3.24503834]
[1763231168909,6.35672981,142.56,142.53,3.24503834]
[1763231169110,1.2171964,142.56,142.53,3.24503834]
[1763231169312,6.35672981,142.56,142.53,3.24503834]
[1763231169515,5.13953341,142.55,142.53,3.24503834]
[1763231169809,1.17,142.54,142.53,0.04503834]
[1763231170510,6.30953341,142.54,142.53,0.04503834]
[1763231170708,1.17,142.54,142.53,0.04503834]
[1763231171012,6.30953341,142.54,142.53,0.04503834]
[1763231171306,1.17,142.54,142.53,0.04503834]
[1763231171507,6.30953341,142.54,142.53,0.04503834]
[1763231171707,8.08259715,142.54,142.53,0.04503834]
[1763231172608,6.30953341,142.54,142.53,0.04503834]
[1763231176607,8.08259715,142.54,142.53,0.04503834]
[1763231181718,6.30953341,142.54,142.53,0.04503834]
[1763231185824,5.13953341,142.54,142.53,3.08503834]
[1763231188915,0.0471964,142.56,142.54,3.04]
[1763231189117,0.0471964,142.56,142.55,4.81306374]
[1763231190419,0.0471964,142.56,142.55,6.21306374]
[1763231192124,3.26,142.63,142.56,3.04]
[1763231192320,3.26,142.63,142.59,3.04]
[1763231193224,0.05026924,142.62,142.6,3.08691582]
[1763231193426,0.05107662,142.62,142.6,3.08691582]
[1763231194632,3.25107662,142.62,142.6,0.04691582]
[1763231196532,3.25107662,142.62,142.55,6.12785703]
[1763231196533,3.25107662,142.62,142.55,3.36]
[1763231197432,3.25107662,142.62,142.57,0.04660357]
[1763231200529,3.25107662,142.62,142.57,3.40660357]
[1763231201332,0.05107662,142.62,142.57,3.40660357]
[1763231201724,3.25107662,142.62,142.57,3.40660357]
[1763231206240,0.05107662,142.62,142.57,3.40660357]
[1763231206544,0.05107662,142.62,142.58,3.36]
[1763231206841,3.25107662,142.62,142.58,3.36]
[1763231207941,3.2,142.61,142.58,3.36]
[1763231209945,3.2,142.61,142.57,3.40660357]
[1763231212051,3.2,142.61,142.57,0.04660357]
[1763231213056,3.2,142.61,142.57,3.40660357]
[1763231217458,3.2,142.61,142.57,0.04660357]
[1763231219357,8.36936565,142.61,142.57,0.04660357]
[1763231219553,3.2,142.6,142.57,0.04660357]
[1763231219756,3.2,142.6,142.57,3.40660357]
[1763231223262,3.2,142.59,142.57,0.04660357]
[1763231223456,3.2,142.58,142.57,0.04660357]
[1763231223659,0.04428635,142.59,142.57,3.40660357]
[1763231223858,3.24428635,142.59,142.57,3.40660357]
[1763231226362,8.42579851,142.59,142.57,3.40660357]
[1763231226564,3.24428635,142.59,142.57,3.40660357]
[1763231227565,8.42579851,142.59,142.57,3.40660357]
[1763231227762,3.24428635,142.59,142.57,0.04660357]
[1763231227963,3.32,142.57,142.45,3.09]
[1763231228164,3.32,142.52,142.47,2.76785703]
[1763231228373,5.18151216,142.51,142.48,3.09]
[1763231228561,5.18151216,142.5,142.48,3.09]
[1763231228760,5.18151216,142.51,142.48,3.09]
[1763231228961,5.18151216,142.5,142.49,3.14293721]
[1763231229169,5.22918767,142.51,142.49,3.14293721]
[1763231229370,5.18151216,142.5,142.49,3.14293721]
[1763231229865,5.22918767,142.51,142.49,3.14293721]
[1763231231164,8.54918767,142.51,142.49,3.14293721]
[1763231231368,3.36767551,142.51,142.49,3.14293721]
[1763231235869,0.04767551,142.51,142.49,3.14293721]
[1763231249785,3.34,142.58,142.5,3.09]
[1763231249978,3.34,142.58,142.52,3.09]
[1763231250681,0.04627972,142.56,142.54,3.13769182]
[1763231250882,0.04637967,142.56,142.55,3.09]
[1763231251088,3.38637967,142.56,142.54,0.04769182]
[1763231251285,0.04637967,142.56,142.54,3.13769182]
[1763231253993,3.22637967,142.56,142.54,0.04769182]
[1763231254190,3.18,142.54,142.48,3.24]
[1763231254382,3.18,142.52,142.48,3.24]
[1763231254683,5.18472516,142.51,142.48,3.24]
[1763231254890,5.18472516,142.51,142.48,5.01431934]
[1763231255095,5.23630987,142.51,142.48,5.05941666]
[1763231255788,3.18,142.5,142.48,0.04509732]
[1763231256885,4.95431934,142.5,142.48,0.04509732]
[1763231257082,3.18,142.49,142.48,0.04509732]
[1763231261895,3.18,142.49,142.42,3.24]
[1763231262094,3.18,142.47,142.42,3.24]
[1763231262794,3.23387585,142.46,142.43,3.28912882]
[1763231264887,3.18,142.45,142.43,3.28912882]
[1763231265196,3.18,142.45,142.43,0.04912882]
[1763231269204,8.42766384,142.45,142.43,0.04912882]
[1763231271299,5.24766384,142.44,142.43,0.04912882]
[1763231271499,8.42766384,142.45,142.43,0.04912882]
[1763231272002,5.24766384,142.45,142.43,3.28912882]
[1763231272194,5.24766384,142.44,142.43,3.28912882]
[1763231272398,5.24766384,142.45,142.44,3.24]
[1763231273507,5.24766384,142.45,142.43,0.04912882]
[1763231273508,8.42766384,142.45,142.43,0.04912882]
[1763231273808,8.42766384,142.45,142.43,3.28912882]
[1763231276211,3.18,142.45,142.43,3.28912882]
[1763231277506,3.18,142.45,142.43,5.06344816]
[1763231279105,3.23387585,142.46,142.43,5.06344816]
[1763231279514,8.48153969,142.46,142.44,3.24]
[1763231279719,0.05387585,142.46,142.45,1.77431934]
[1763231280012,3.18,142.51,142.46,3.24]
[1763231280213,3.18,142.51,142.45,1.77431934]
[1763231280214,5.24766384,142.5,142.48,5.01431934]
[1763231280414,3.18,142.51,142.48,5.01431934]
[1763231281007,8.47881797,142.51,142.48,5.06257226]
[1763231281208,0.05115413,142.51,142.5,5.01431934]
[1763231291925,3.22,142.49,142.34,3.28]
[1763231292221,3.22,142.42,142.36,1.77431934]
[1763231292421,3.22,142.4,142.38,1.77431934]
[1763231292627,3.22,142.42,142.38,5.05431934]
[1763231292826,0.0537381,142.41,142.39,0.04541475]
[1763231293328,0.0537381,142.41,142.39,3.32541475]
[1763231293624,0.0537381,142.41,142.4,5.05431934]
[1763231300524,8.47354768,142.5,142.41,3.28]
[1763231300736,3.22,142.49,142.47,1.77431934]
[1763231300923,3.22,142.49,142.46,1.77431934]
[1763231301123,3.22,142.49,142.46,5.05431934]
[1763231301525,3.27098623,142.49,142.46,5.10374873]
[1763231303027,0.05098623,142.49,142.47,3.28]
[1763231311336,0.05098623,142.49,142.48,1.77431934]
[1763231314142,0.05098623,142.49,142.47,3.28]
[1763231314341,0.05098623,142.49,142.47,5.05431934]
[1763231316837,0.05098623,142.49,142.47,3.28]
[1763231317638,3.10098623,142.49,142.46,2.82189572]
[1763231317839,5.30453391,142.49,142.47,3.12]
[1763231318044,0.05098623,142.49,142.47,3.12]
[1763231332946,8.35453391,142.49,142.46,3.16942939]
[1763231333146,3.10098623,142.49,142.46,3.16942939]
[1763231334147,8.35453391,142.49,142.46,3.16942939]
[1763231334455,3.10098623,142.49,142.46,3.16942939]
[1763231335558,8.35453391,142.49,142.46,3.16942939]
[1763231335748,0.05098623,142.49,142.47,3.12]
[1763231336254,5.30453391,142.49,142.47,3.12]
[1763231336457,0.05098623,142.49,142.47,3.12]
[1763231336657,5.30453391,142.49,142.47,3.12]
[1763231336852,0.05098623,142.49,142.47,3.12]
[1763231337044,5.30453391,142.49,142.47,3.12]
[1763231337249,5.25354768,142.48,142.47,3.12]
[1763231345164,8.39354768,142.48,142.46,3.32942939]
[1763231345462,5.25354768,142.47,142.46,3.32942939]
[1763231351658,8.58354768,142.47,142.46,3.32942939]
[1763231351864,8.58354768,142.47,142.46,0.04942939]
[1763231354770,3.33,142.47,142.46,0.04942939]
[1763231354977,8.44222841,142.47,142.46,0.04942939]
[1763231356274,5.11222841,142.47,142.46,3.14942939]
[1763231364575,8.44222841,142.47,142.46,73.54942939]
[1763231365080,5.11222841,142.47,142.46,76.64942939]
[1763231365900,5.11222841,142.47,142.46,3.14942939]
[1763231366065,5.11222841,142.47,142.46,76.64942939]
[1763231370578,4.98000139,142.47,142.46,85.99023032]
[1763231370784,0.05098623,142.49,142.47,3.1]
[1763231371084,0.05098623,142.49,142.48,3.1]
[1763231372082,4.62672691,142.55,142.49,3.1]
[1763231372283,4.62672691,142.55,142.5,85.3794252]
[1763231372582,4.62672691,142.55,142.51,8.7794252]
[1763231372781,4.62672691,142.55,142.52,8.7794252]
[1763231372982,4.62672691,142.55,142.53,8.7794252]
[1763231373185,4.67300303,142.55,142.53,0.04569901]
[1763231374178,1.21,142.54,142.53,0.04569901]
[1763231381181,1.25627612,142.55,142.53,12.10301196]
[1763231381382,1.25627612,142.55,142.54,8.77731295]
[1763231382184,10.39553832,142.59,142.53,0.04569901]
[1763231382690,4.98318025,142.58,142.53,0.04569901]
[1763231382882,1.77338712,142.55,142.53,0.04569901]
[1763231383082,4.98318025,142.54,142.53,0.04569901]
[1763231383688,6.38318025,142.54,142.53,0.04569901]
[1763231388201,4.98318025,142.54,142.53,0.04569901]
[1763231388405,6.38318025,142.54,142.53,0.04569901]
[1763231392412,4.98318025,142.54,142.5,1.77338712]
[1763231392611,4.98318025,142.53,142.5,1.77338712]
[1763231392801,4.98318025,142.52,142.48,1.77338712]
[1763231393001,4.98318025,142.51,142.48,1.77338712]
[1763231393301,4.98318025,142.5,142.48,1.77338712]
[1763231393506,4.98318025,142.49,142.48,1.82348983]
[1763231395905,4.98318025,142.49,142.48,0.05010271]
[1763231396110,4.98318025,142.49,142.48,1.82348983]
[1763231400716,4.98318025,142.49,142.48,5.10348983]
[1763231401013,4.98318025,142.49,142.48,1.82348983]
[1763231402818,4.98318025,142.49,142.48,0.05010271]
[1763231403918,4.98318025,142.49,142.46,1.77338712]
[1763231404118,4.98318025,142.48,142.46,1.77338712]
[1763231404317,4.98318025,142.47,142.46,1.77338712]
[1763231405721,0.0527448,142.48,142.46,1.77338712]
[1763231406018,0.0527448,142.48,142.47,3.13]
[1763231407611,5.07894986,142.48,142.46,1.77338712]
[1763231407821,5.02620506,142.47,142.46,1.77338712]
[1763231408613,5.02620506,142.47,142.45,0.05187638]
[1763231408826,5.02620506,142.46,142.45,0.05187638]
[1763231409921,5.02620506,142.46,142.41,1.77338712]
[1763231410226,5.02620506,142.45,142.41,4.90338712]
[1763231410527,5.02620506,142.44,142.41,4.90338712]
[1763231410727,5.02620506,142.43,142.41,1.77338712]
[1763231411022,5.02620506,142.48,142.41,1.77338712]
[1763231411226,0.04631739,142.46,142.43,1.77338712]
[1763231411427,5.02620506,142.45,142.43,1.82607026]
[1763231411615,5.02620506,142.44,142.43,1.82607026]
[1763231412728,5.02620506,142.45,142.43,1.82607026]
[1763231412926,5.02620506,142.44,142.43,1.82607026]
[1763231413128,5.02620506,142.45,142.43,0.05268314]
[1763231413426,5.02620506,142.44,142.43,0.05268314]
[1763231413629,5.02620506,142.45,142.43,0.05268314]
[1763231413821,5.02620506,142.44,142.43,0.05268314]
[1763231414020,5.02620506,142.45,142.43,0.05268314]
[1763231414219,5.02620506,142.44,142.43,0.05268314]
[1763231414427,5.02620506,142.45,142.43,0.05268314]
[1763231414628,5.02620506,142.44,142.43,0.05268314]
[1763231414821,5.02620506,142.45,142.43,0.05268314]
[1763231415023,5.02620506,142.44,142.43,0.05268314]
[1763231415219,5.02620506,142.45,142.4,1.77338712]
[1763231415427,5.02620506,142.44,142.4,1.77338712]
[1763231415626,1.77338712,142.47,142.4,1.77338712]
[1763231415627,5.02620506,142.46,142.4,1.77338712]
[1763231415828,5.02620506,142.45,142.4,1.77338712]
[1763231416031,5.02620506,142.44,142.4,1.77338712]
[1763231416333,0.04462112,142.43,142.41,0.05062565]
[1763231417920,5.02620506,142.42,142.37,2.1132153]
[1763231418131,5.02620506,142.42,142.37,3.88660242]
[1763231418328,0.04462112,142.43,142.37,3.88660242]
[1763231418526,5.07082618,142.43,142.37,3.88660242]
[1763231418729,0.04462112,142.43,142.37,3.88660242]
[1763231419027,5.07082618,142.43,142.39,0.04704446]
[1763231419225,0.04462112,142.43,142.39,0.04704446]
[1763231419430,5.07082618,142.43,142.39,0.04704446]
[1763231419635,5.02620506,142.42,142.39,0.04704446]
[1763231419832,5.02620506,142.41,142.39,0.04704446]
[1763231420127,5.02620506,142.42,142.39,0.04704446]
[1763231420333,5.02620506,142.41,142.37,2.1132153]
[1763231420534,5.02620506,142.4,142.37,2.1132153]
[1763231420735,5.02620506,142.42,142.37,2.1132153]
[1763231420936,5.02620506,142.41,142.37,2.1132153]
[1763231421136,5.02620506,142.4,142.37,2.1132153]
[1763231421338,0.0528539,142.4,142.37,2.16621409]
[1763231422925,5.07905896,142.4,142.37,2.16621409]
[1763231423637,5.02620506,142.4,142.38,3.12]
[1763231423828,1.77338712,142.51,142.4,3.12]
[1763231424025,1.77338712,142.51,142.44,1.77338712]
[1763231424236,1.77338712,142.51,142.42,1.77338712]
[1763231424635,1.77338712,142.51,142.44,1.77338712]
[1763231425130,1.77338712,142.51,142.43,1.77338712]
[1763231425529,0.0508777,142.48,142.46,0.0525414]
[1763231427028,0.0508777,142.48,142.46,3.1725414]
[1763231433339,0.0508777,142.48,142.46,0.0525414]
[1763231433945,1.77338712,142.47,142.46,0.0525414]
[1763231435441,1.82426482,142.48,142.46,0.0525414]
[1763231436238,1.82426482,142.48,142.43,3.12]
[1763231436640,6.77003564,142.48,142.43,3.12]
[1763231436847,0.0508777,142.48,142.43,3.12]
[1763231437250,0.0508777,142.48,142.44,3.33256479]
[1763231437443,0.05289655,142.47,142.44,3.33256479]
[1763231443352,4.99866737,142.47,142.44,3.33256479]
[1763231443553,0.05289655,142.47,142.44,3.33256479]
[1763231444256,4.99866737,142.47,142.44,3.33256479]
[1763231444556,0.05289655,142.47,142.44,3.33256479]
[1763231444855,4.99866737,142.47,142.44,3.33256479]
[1763231445053,0.05289655,142.47,142.44,3.33256479]
[1763231445255,4.99866737,142.47,142.44,3.33256479]
[1763231445559,0.05289655,142.47,142.44,3.33256479]
[1763231445854,4.99866737,142.47,142.44,3.33256479]
[1763231446048,0.05289655,142.47,142.44,3.33256479]
[1763231446248,4.99866737,142.47,142.44,3.33256479]
[1763231446443,0.05289655,142.47,142.44,3.33256479]
[1763231446647,4.99866737,142.47,142.44,3.33256479]
[1763231446847,0.05289655,142.47,142.44,3.33256479]
[1763231447056,4.99866737,142.47,142.44,3.33256479]
[1763231447248,0.05289655,142.47,142.44,3.33256479]
[1763231447547,4.99866737,142.47,142.44,3.33256479]
[1763231447855,0.05289655,142.47,142.44,3.33256479]
[1763231448053,4.99866737,142.47,142.44,3.33256479]
[1763231448256,0.05289655,142.47,142.44,3.33256479]
[1763231448451,4.99866737,142.47,142.44,3.33256479]
[1763231448756,0.05289655,142.47,142.44,3.33256479]
[1763231449055,4.99866737,142.47,142.44,3.33256479]
[1763231449253,0.05289655,142.47,142.44,3.33256479]
[1763231449452,4.99866737,142.47,142.44,3.33256479]
[1763231449643,0.05289655,142.47,142.44,3.33256479]
[1763231449848,4.99866737,142.47,142.44,3.33256479]
[1763231450049,0.05289655,142.47,142.44,3.33256479]
[1763231450249,4.99866737,142.47,142.44,3.33256479]
[1763231450450,0.05289655,142.47,142.44,3.33256479]
[1763231450749,4.99866737,142.47,142.44,3.33256479]
[1763231450955,0.05289655,142.47,142.44,3.33256479]
[1763231451158,4.99866737,142.47,142.44,3.33256479]
[1763231451357,0.05289655,142.47,142.44,3.33256479]
[1763231451548,4.99866737,142.47,142.44,3.33256479]
[1763231451745,0.05289655,142.47,142.44,3.33256479]
[1763231451949,4.99866737,142.47,142.44,3.33256479]
[1763231452251,0.05289655,142.47,142.44,3.33256479]
[1763231452444,4.99866737,142.47,142.44,3.33256479]
[1763231452644,0.05289655,142.47,142.44,3.33256479]
[1763231452854,4.99866737,142.47,142.44,3.33256479]
[1763231453055,0.05289655,142.47,142.44,3.33256479]
[1763231453258,4.99866737,142.47,142.44,3.33256479]
[1763231453456,0.05289655,142.47,142.44,3.33256479]
[1763231467558,4.95553989,142.47,142.44,3.33256479]
[1763231467759,0.05289655,142.47,142.44,3.33256479]
[1763231468266,4.90264334,142.46,142.44,3.33256479]
[1763231468467,4.90264334,142.45,142.44,3.33256479]
[1763231468766,4.90264334,142.46,142.44,3.33256479]
[1763231468968,4.90264334,142.45,142.44,3.33256479]
[1763231469169,4.90264334,142.46,142.44,3.33256479]
[1763231469368,4.90264334,142.45,142.44,3.33256479]
[1763231469568,4.90264334,142.46,142.44,3.33256479]
[1763231469764,4.90264334,142.45,142.44,3.33256479]
[1763231469966,4.90264334,142.46,142.44,3.33256479]
[1763231470165,0.05289655,142.47,142.44,3.33256479]
[1763231470166,4.90264334,142.45,142.44,3.33256479]
[1763231470365,4.90264334,142.46,142.44,3.33256479]
[1763231470666,4.90264334,142.45,142.44,3.33256479]
[1763231470866,4.90264334,142.46,142.44,3.33256479]
[1763231471066,4.90264334,142.45,142.44,3.33256479]
[1763231471570,4.90264334,142.46,142.44,3.33256479]
[1763231471771,4.90264334,142.45,142.44,3.33256479]
[1763231471973,4.90264334,142.46,142.44,3.33256479]
[1763231472166,4.90264334,142.45,142.44,3.33256479]
[1763231472367,4.90264334,142.46,142.44,3.33256479]
[1763231472665,4.90264334,142.45,142.44,3.33256479]
[1763231472866,4.90264334,142.46,142.44,3.33256479]
[1763231473067,4.90264334,142.45,142.44,3.33256479]
[1763231473268,4.90264334,142.45,142.44,0.05256479]
[1763231476278,4.90264334,142.45,142.44,3.31256479]
[1763231479679,4.90264334,142.46,142.44,3.31256479]
[1763231479873,4.90264334,142.45,142.44,3.31256479]
[1763231480073,4.90264334,142.46,142.44,3.31256479]
[1763231480274,4.90264334,142.45,142.44,3.31256479]
[1763231480474,4.90264334,142.46,142.44,3.31256479]
[1763231480674,4.90264334,142.45,142.44,3.31256479]
[1763231487480,4.90264334,142.45,142.44,0.05256479]
[1763231488685,4.90264334,142.45,142.44,3.31256479]
[1763231490081,4.90264334,142.45,142.44,0.05256479]
[1763231494086,4.90264334,142.45,142.41,3.26]
[1763231494288,4.90264334,142.44,142.41,3.26]
[1763231494592,4.90264334,142.43,142.41,3.26]
[1763231494794,4.90264334,142.42,142.41,3.26]
[1763231495695,1.53264334,142.42,142.41,4.66]
[1763231495893,0.04947728,142.43,142.42,3.27]
[1763231507709,5.09893021,142.43,142.42,3.27]
[1763231513507,3.16,142.42,142.41,3.27]
[1763231513707,8.20945293,142.42,142.4,3.32171775]
[1763231513912,5.04945293,142.41,142.4,3.32171775]
[1763231515518,0.04947728,142.43,142.4,3.32171775]
[1763231516413,0.04947728,142.43,142.42,3.27]
[1763231520719,9.62300054,142.51,142.45,1.77584416]
[1763231521023,3.16,142.5,142.46,3.27]
[1763231521715,0.04491047,142.49,142.47,3.31901543]
[1763231521921,0.04491047,142.49,142.48,3.27]
[1763231522122,0.04491047,142.49,142.48,5.04584416]
[1763231533734,4.90213253,142.55,142.49,3.28]
[1763231533735,4.90213253,142.54,142.49,3.28]
[1763231533928,4.90213253,142.53,142.52,1.77584416]
[1763231534435,3.04,142.56,142.52,5.05584416]
[1763231534634,3.04,142.54,142.53,0.0517797]
[1763231534835,7.94213253,142.54,142.53,0.0517797]
[1763231538239,3.04,142.54,142.53,0.0517797]
[1763231539539,3.0888847,142.55,142.53,0.0517797]
[1763231539841,3.04,142.54,142.53,0.0517797]
[1763231540138,3.0888847,142.55,142.53,3.3317797]
[1763231541131,3.0888847,142.55,142.54,1.77584416]
[1763231550238,0.0488847,142.55,142.54,5.05584416]
[1763231552644,3.0888847,142.55,142.54,1.77584416]
[1763231556446,3.0888847,142.55,142.53,0.0517797]
[1763231556848,3.36,142.54,142.53,0.0517797]
[1763231557642,3.4088847,142.55,142.53,3.4117797]
[1763231558750,8.31101723,142.55,142.53,3.4117797]
[1763231558950,3.4088847,142.55,142.53,3.4117797]
[1763231559650,4.95101723,142.55,142.53,3.4117797]
[1763231559852,0.0488847,142.55,142.53,3.4117797]
[1763231560151,4.95101723,142.55,142.53,3.4117797]
[1763231560339,4.90213253,142.54,142.53,3.4117797]
[1763231560540,3.4088847,142.55,142.53,3.4117797]
[1763231560745,8.31101723,142.55,142.53,3.4117797]
[1763231560950,3.36,142.53,142.48,6.13103422]
[1763231561246,3.36,142.52,142.49,3.36]
[1763231562249,3.41209027,142.52,142.49,3.41349677]
[1763231562443,8.22660585,142.52,142.49,3.41349677]
[1763231562644,3.41209027,142.52,142.49,3.41349677]
[1763231563046,0.05209027,142.52,142.49,3.41349677]
[1763231563548,4.86660585,142.52,142.49,3.41349677]
[1763231563748,0.05209027,142.52,142.49,3.41349677]
[1763231563951,4.86660585,142.52,142.49,3.41349677]
[1763231564249,4.81451558,142.51,142.49,3.41349677]
[1763231565356,0.05209027,142.52,142.49,3.41349677]
[1763231566353,0.05209027,142.52,142.51,3.36]
[1763231569462,0.05209027,142.52,142.49,0.05349677]
[1763231569658,3.41209027,142.52,142.49,3.41349677]
[1763231569855,3.41209027,142.52,142.49,0.05349677]
[1763231570462,3.36,142.5,142.49,0.05349677]
[1763231570661,8.21365665,142.5,142.49,0.05349677]
[1763231574471,3.36,142.49,142.42,6.56043793]
[1763231574767,3.36,142.47,142.42,3.36]
[1763231574972,3.36,142.45,142.42,3.36]
[1763231575470,3.40905636,142.45,142.42,3.41347739]
[1763231580473,3.40905636,142.45,142.42,0.05347739]
[1763231580877,3.40905636,142.45,142.42,3.41347739]
[1763231581975,3.40905636,142.45,142.42,0.05347739]
[1763231592170,0.04905636,142.45,142.42,3.25347739]
[1763231592576,0.04905636,142.45,142.44,3.2]
[1763231593183,3.21,142.5,142.45,3.2]
[1763231594286,3.21,142.48,142.46,0.05263785]
[1763231596578,3.21,142.47,142.4,3.2]
[1763231596784,3.21,142.46,142.4,3.2]
[1763231597679,3.25784896,142.44,142.42,0.05243766]
[1763231606190,3.21,142.43,142.37,4.88424952]
[1763231606992,3.21,142.43,142.37,8.08424952]
[1763231607196,3.21,142.43,142.39,0.05183726]
[1763231612201,3.21,142.42,142.39,0.05183726]
[1763231613401,3.21,142.41,142.39,0.05183726]
[1763231615195,3.1,142.4,142.39,0.05183726]
[1763231615901,4.90143632,142.41,142.39,3.18183726]
[1763231616103,0.04777967,142.41,142.39,3.18183726]
[1763231616301,3.14777967,142.41,142.39,3.18183726]
[1763231617209,3.14777967,142.41,142.39,0.05183726]
[1763231617407,8.00143632,142.41,142.39,0.05183726]
[1763231617607,3.1,142.4,142.39,0.05183726]
[1763231618199,3.14777967,142.41,142.39,0.05183726]
[1763231618401,8.00143632,142.41,142.39,0.05183726]
[1763231618601,3.14777967,142.41,142.39,0.05183726]
[1763231618809,0.04777967,142.41,142.39,5.95287148]
[1763231619009,0.04777967,142.41,142.4,3.13]
[1763231619511,3.14777967,142.41,142.39,2.82287148]
[1763231619705,3.14777967,142.41,142.39,0.05183726]
[1763231621602,8.0453545,142.41,142.39,3.18183726]
[1763231621803,0.04777967,142.41,142.39,3.18183726]
[1763231622003,0.04777967,142.41,142.39,5.95287148]
[1763231622197,0.04777967,142.41,142.4,3.13]
[1763231622910,0.04777967,142.41,142.4,4.90605131]
[1763231624007,0.04777967,142.41,142.39,3.18183726]
[1763231624203,0.04777967,142.41,142.4,4.90605131]
[1763231624404,3.14777967,142.41,142.4,1.77605131]
[1763231624805,0.04777967,142.41,142.4,4.90605131]
[1763231625606,3.14777967,142.41,142.4,1.77605131]
[1763231627208,8.0453545,142.41,142.4,1.77605131]
[1763231627412,3.14777967,142.41,142.4,1.77605131]
[1763231628004,8.0453545,142.41,142.4,1.77605131]
[1763231628200,3.14777967,142.41,142.4,1.77605131]
[1763231629204,8.0453545,142.41,142.4,1.77605131]
[1763231629405,3.14777967,142.41,142.4,1.77605131]
[1763231630611,8.0453545,142.41,142.4,1.77605131]
[1763231630804,3.14777967,142.41,142.4,1.77605131]
[1763231631610,8.0453545,142.41,142.4,1.77605131]
[1763231631809,3.14777967,142.41,142.4,1.77605131]
[1763231632614,8.0453545,142.41,142.4,1.77605131]
[1763231632814,3.14777967,142.41,142.4,1.77605131]
[1763231633114,3.14777967,142.41,142.39,1.82788857]
[1763231633714,8.0453545,142.41,142.39,1.82788857]
[1763231633914,4.89757483,142.4,142.39,1.82788857]
[1763231634810,4.89757483,142.4,142.39,4.95788857]
[1763231635808,3.14777967,142.41,142.39,4.95788857]
[1763231636612,8.0453545,142.41,142.39,4.95788857]
[1763231636812,3.14777967,142.41,142.39,4.95788857]
[1763231637714,8.0453545,142.41,142.39,4.95788857]
[1763231637918,3.14777967,142.41,142.39,4.95788857]
[1763231638121,3.14777967,142.41,142.39,1.82788857]